bitfinex/quotes_BTCUSD_20230404
["timestamp","ask_amount","ask_price","bid_price","bid_amount"]
[1680632900380,0.806487,28135.0,28134.0,0.01507853]
[1680632900594,0.815487,28135.0,28134.0,0.01507853]
[1680632900804,0.815577,28135.0,28134.0,0.01507853]
[1680632901017,0.815487,28135.0,28134.0,0.01507853]
[1680632901667,1.16200368,28135.0,28134.0,0.01507853]
[1680632901894,0.834247,28135.0,28134.0,0.01507853]
[1680632902112,0.815487,28135.0,28134.0,0.01507853]
[1680632902350,0.834919,28135.0,28134.0,0.01507853]
[1680632902774,0.815487,28135.0,28134.0,0.01507853]
[1680632904083,0.70124371,28135.0,28134.0,0.01507853]
[1680632905620,0.70175371,28135.0,28128.0,0.00012]
[1680632905832,0.14189681,28134.0,28126.0,0.16564]
[1680632906062,0.14240681,28134.0,28127.0,0.40387756]
[1680632906292,0.14240681,28134.0,28128.0,0.038332]
[1680632906716,0.23024357,28134.0,28127.0,0.0085]
[1680632906940,0.4147487,28133.0,28124.0,0.17058]
[1680632907155,0.14189681,28132.0,28128.0,0.003]
[1680632907388,0.11532189,28132.0,28124.0,0.52529056]
[1680632907617,0.11532189,28132.0,28123.0,0.44743617]
[1680632907618,0.14189681,28131.0,28125.0,0.30864022]
[1680632907830,0.11506466,28130.0,28125.0,0.16960053]
[1680632908046,0.55747147,28130.0,28126.0,0.041589]
[1680632908257,0.41557466,28130.0,28125.0,0.040051]
[1680632908691,0.41557466,28130.0,28125.0,0.20965153]
[1680632908895,0.41557466,28130.0,28126.0,0.040575]
[1680632909120,0.11557466,28130.0,28126.0,0.040575]
[1680632909325,0.11506466,28130.0,28126.0,0.040575]
[1680632909543,0.11557466,28130.0,28126.0,0.040575]
[1680632909785,0.29898894,28130.0,28126.0,0.16960053]
[1680632910021,0.33723699,28129.0,28126.0,0.16960053]
[1680632910244,0.45287484,28129.0,28126.0,0.16960053]
[1680632910671,0.33774699,28129.0,28127.0,0.16960053]
[1680632910882,0.33774699,28129.0,28128.0,0.041305]
[1680632910883,0.33874699,28129.0,28128.0,0.041305]
[1680632911352,0.33874699,28129.0,28127.0,0.039658]
[1680632911560,0.33774699,28129.0,28127.0,0.039658]
[1680632911780,0.34074699,28129.0,28127.0,0.20925853]
[1680632911992,0.34074699,28129.0,28128.0,0.03831]
[1680632912210,0.34074699,28129.0,28127.0,0.041927]
[1680632912640,0.35486471,28128.0,28127.0,0.041927]
[1680632912853,0.35537471,28128.0,28127.0,0.041927]
[1680632914377,0.35637471,28128.0,28127.0,0.041927]
[1680632914596,0.35637471,28128.0,28127.0,0.16974011]
[1680632914843,0.35637471,28128.0,28126.0,0.16960053]
[1680632914844,0.03714747,28128.0,28126.0,0.12781311]
[1680632915069,0.37379067,28128.0,28124.0,0.42440935]
[1680632915292,0.3195493,28127.0,28125.0,0.12781311]
[1680632915507,0.3200593,28127.0,28124.0,0.59400988]
[1680632915725,0.3200593,28127.0,28125.0,0.08518847]
[1680632916386,0.00251,28127.0,28125.0,0.08518847]
[1680632916603,0.00051,28129.0,28124.0,0.08518847]
[1680632916820,0.32365556,28127.0,28124.0,0.21300158]
[1680632917043,0.32316556,28127.0,28124.0,0.03614702]
[1680632917253,0.00151,28127.0,28124.0,0.03614702]
[1680632917492,0.001,28127.0,28122.0,0.38258026]
[1680632917703,0.43579998,28127.0,28122.0,0.38258026]
[1680632917932,0.37475002,28126.0,28123.0,0.16960053]
[1680632918156,0.37526002,28126.0,28123.0,0.16960053]
[1680632918399,0.37526002,28126.0,28122.0,0.28258026]
[1680632918658,0.37526002,28126.0,28123.0,0.20919053]
[1680632918957,0.18003281,28126.0,28123.0,0.16960053]
[1680632919206,0.18003281,28126.0,28122.0,0.16960053]
[1680632919207,0.02022629,28126.0,28122.0,0.16960053]
[1680632919475,0.40232101,28126.0,28122.0,0.16960053]
[1680632919744,0.36499726,28126.0,28122.0,0.16960053]
[1680632919996,0.36299726,28126.0,28123.0,0.037955]
[1680632920224,0.36499726,28126.0,28122.0,0.16960053]
[1680632920440,0.32633659,28125.0,28122.0,0.16960053]
[1680632920655,0.32684659,28125.0,28123.0,0.041073]
[1680632921771,0.32884659,28125.0,28123.0,0.041073]
[1680632923056,0.297955,28124.0,28123.0,0.041073]
[1680632923288,0.298465,28124.0,28123.0,0.041073]
[1680632924661,0.300465,28124.0,28123.0,0.041073]
[1680632924875,0.300465,28124.0,28122.0,0.16960053]
[1680632925098,0.300465,28124.0,28123.0,0.041731]
[1680632925325,0.300465,28124.0,28122.0,0.041071]
[1680632925969,0.300465,28124.0,28122.0,0.33834055]
[1680632925970,0.298465,28124.0,28122.0,0.33834055]
[1680632926187,0.298465,28124.0,28123.0,0.039942]
[1680632926409,0.00051,28124.0,28123.0,0.039942]
[1680632926653,0.002,28124.0,28123.0,0.039942]
[1680632927095,0.002,28124.0,28123.0,0.25272278]
[1680632927318,0.00251,28124.0,28123.0,0.25272278]
[1680632927533,0.34826177,28124.0,28123.0,0.12505376]
[1680632927754,0.35026177,28124.0,28123.0,0.08511176]
[1680632927983,0.00251,28124.0,28123.0,0.08511176]
[1680632928201,0.002,28124.0,28123.0,0.08511176]
[1680632928424,0.30825778,28124.0,28123.0,0.08511176]
[1680632928639,0.30876778,28124.0,28123.0,0.08511176]
[1680632930134,0.30876778,28124.0,28123.0,0.12386376]
[1680632930599,0.30876778,28124.0,28123.0,0.08511176]
[1680632931046,0.30876778,28124.0,28123.0,0.12538476]
[1680632931273,0.30876778,28124.0,28123.0,0.9819605]
[1680632931274,0.00251,28124.0,28123.0,0.9819605]
[1680632931503,0.002,28124.0,28123.0,0.90534874]
[1680632931734,0.002,28124.0,28123.0,1.2446759]
[1680632931951,0.002,28124.0,28123.0,0.86128356]
[1680632932173,0.002,28124.0,28123.0,0.95905645]
[1680632932391,0.002,28124.0,28123.0,1.12963645]
[1680632932832,0.39821676,28130.0,28124.0,0.0842]
[1680632933042,0.39821676,28130.0,28127.0,0.0850886]
[1680632933265,0.00051,28130.0,28129.0,0.084]
[1680632933484,0.00051,28131.0,28129.0,0.48072056]
[1680632933683,0.00051,28131.0,28130.0,0.123728]
[1680632933900,0.00051,28132.0,28130.0,0.57715833]
[1680632934111,0.00051,28132.0,28131.0,0.038162]
[1680632934979,0.00251,28132.0,28131.0,0.038162]
[1680632935184,0.00051,28132.0,28131.0,0.038162]
[1680632935406,0.00251,28132.0,28131.0,0.055162]
[1680632936069,0.00251,28132.0,28131.0,0.017]
[1680632936290,0.00251,28132.0,28131.0,0.05776]
[1680632936974,0.00251,28132.0,28131.0,0.017]
[1680632937410,0.30193342,28132.0,28131.0,0.017]
[1680632937844,0.29993342,28132.0,28130.0,0.36633888]
[1680632938061,0.30193342,28132.0,28131.0,0.054932]
[1680632938266,0.29993342,28132.0,28130.0,0.36633888]
[1680632938492,0.00151,28132.0,28131.0,0.056414]
[1680632938704,0.001,28132.0,28131.0,0.056414]
[1680632938921,0.00151,28132.0,28131.0,0.015]
[1680632939374,0.29122473,28132.0,28131.0,0.015]
[1680632939580,0.29022473,28132.0,28129.0,0.59381548]
[1680632939783,0.29122473,28132.0,28131.0,0.015]
[1680632939990,0.29022473,28132.0,28130.0,0.39023576]
[1680632940404,0.00051,28132.0,28130.0,0.39023576]
[1680632940634,0.001,28132.0,28131.0,0.054527]
[1680632940916,0.00051,28132.0,28130.0,0.39023576]
[1680632941121,0.00251,28132.0,28131.0,0.040484]
[1680632941351,0.00051,28132.0,28131.0,0.040484]
[1680632941527,0.00051,28132.0,28131.0,0.055484]
[1680632941742,0.00151,28132.0,28131.0,0.055484]
[1680632942307,0.00151,28132.0,28131.0,0.015]
[1680632942708,0.001,28132.0,28131.0,0.053782]
[1680632942939,0.001,28132.0,28131.0,0.038782]
[1680632943148,0.00040217,28134.0,28131.0,0.038782]
[1680632943373,0.001,28132.0,28131.0,0.36205505]
[1680632943585,0.32668087,28135.0,28131.0,0.34705505]
[1680632943796,0.001,28132.0,28131.0,0.32169605]
[1680632944009,0.32668087,28135.0,28131.0,0.34865505]
[1680632944222,0.001,28134.0,28132.0,0.32831361]
[1680632944650,0.32668087,28135.0,28132.0,0.32831361]
[1680632945936,0.36467366,28134.0,28132.0,0.32831361]
[1680632946153,0.36607583,28134.0,28132.0,0.32831361]
[1680632946365,0.36507583,28134.0,28132.0,0.32831361]
[1680632946578,0.36507583,28134.0,28132.0,0.33731361]
[1680632946828,0.36507583,28134.0,28132.0,0.32831361]
[1680632947048,0.36607583,28134.0,28132.0,0.33731361]
[1680632947477,0.36607583,28134.0,28132.0,0.009]
[1680632950594,0.36749923,28133.0,28132.0,0.009]
[1680632950826,0.3679014,28133.0,28132.0,0.009]
[1680632951277,0.00040217,28133.0,28132.0,0.009]
[1680632951508,0.34455156,28135.0,28132.0,0.050008]
[1680632951729,0.001,28133.0,28132.0,0.0206]
[1680632951956,0.29735487,28133.0,28132.0,0.0206]
[1680632952176,0.29775704,28133.0,28132.0,0.0206]
[1680632952623,0.29735487,28133.0,28132.0,0.0206]
[1680632953254,0.29735487,28133.0,28132.0,0.009]
[1680632954360,0.29775704,28133.0,28132.0,0.009]
[1680632954632,0.29775704,28133.0,28132.0,0.048467]
[1680632954842,0.001,28133.0,28132.0,0.048467]
[1680632955967,0.001,28133.0,28132.0,0.009]
[1680632956161,0.001,28133.0,28132.0,0.049286]
[1680632958267,0.29802284,28133.0,28132.0,0.009]
[1680632958484,0.05410572,28133.0,28132.0,0.009]
[1680632958706,0.30629673,28133.0,28132.0,0.009]
[1680632964870,0.3066089,28133.0,28132.0,0.009]
[1680632965093,0.30629673,28133.0,28132.0,0.009]
[1680632965336,0.001,28133.0,28132.0,0.009]
[1680632965564,0.18171227,28133.0,28132.0,0.009]
[1680632965787,0.2212183,28133.0,28132.0,0.009]
[1680632966268,0.5212183,28133.0,28132.0,0.009]
[1680632966493,1.0299183,28133.0,28132.0,0.009]
[1680632966945,1.0299183,28133.0,28126.0,0.0852686]
[1680632966946,1.0289183,28133.0,28126.0,0.0852686]
[1680632967162,0.0485,28131.0,28126.0,0.0852086]
[1680632967384,0.14189681,28130.0,28126.0,0.0852686]
[1680632967842,0.0485,28131.0,28126.0,0.0852686]
[1680632968046,0.30221012,28129.0,28126.0,0.0852686]
[1680632968269,0.30221012,28129.0,28126.0,0.1012686]
[1680632968498,0.30221012,28129.0,28126.0,0.0852686]
[1680632968713,0.36488281,28129.0,28126.0,0.01618]
[1680632968928,0.36488281,28129.0,28126.0,0.00018]
[1680632969370,0.48001066,28129.0,28126.0,0.0852686]
[1680632969587,0.0485,28128.0,28125.0,0.21290149]
[1680632969809,0.0485,28128.0,28125.0,0.00018]
[1680632970056,0.0485,28128.0,28124.0,0.0852686]
[1680632970273,0.46563797,28129.0,28124.0,0.27857611]
[1680632970498,0.32769413,28128.0,28124.0,0.27857611]
[1680632970728,0.32769413,28128.0,28125.0,0.016]
[1680632970962,0.32869413,28128.0,28125.0,0.016]
[1680632971187,0.32769413,28128.0,28124.0,0.27857611]
[1680632971443,0.32769413,28128.0,28124.0,0.29457611]
[1680632971665,0.04935242,28127.0,28124.0,0.36366471]
[1680632971892,0.04935242,28127.0,28125.0,0.016]
[1680632972590,0.04935242,28127.0,28125.0,0.01589089]
[1680632972817,0.28249229,28128.0,28125.0,0.01589089]
[1680632973069,0.31054101,28127.0,28125.0,0.01589089]
[1680632973292,0.31094318,28127.0,28123.0,0.28818337]
[1680632973526,0.31094318,28127.0,28124.0,0.016]
[1680632973761,0.31094318,28127.0,28123.0,0.41581626]
[1680632973995,0.41082028,28127.0,28125.0,0.016]
[1680632974221,0.41082028,28127.0,28123.0,0.28818337]
[1680632974457,0.25734069,28126.0,28123.0,0.1010886]
[1680632974683,0.0485,28124.0,28123.0,0.016]
[1680632974913,0.0485,28124.0,28121.0,0.0850886]
[1680632975147,0.0485,28124.0,28122.0,0.1257266]
[1680632975406,0.0485,28124.0,28121.0,0.21272149]
[1680632975649,0.0485,28124.0,28122.0,0.0850886]
[1680632975876,0.34717341,28123.0,28120.0,0.0852686]
[1680632976104,0.0483,28121.0,28119.0,0.53615585]
[1680632976331,0.11607609,28120.0,28119.0,0.00018]
[1680632976613,0.16457609,28120.0,28119.0,0.00012]
[1680632976854,0.0485,28120.0,28119.0,0.21143086]
[1680632977301,0.0495,28120.0,28119.0,0.22043086]
[1680632977520,0.0485,28120.0,28119.0,0.21143086]
[1680632977738,0.08695695,28120.0,28119.0,0.21343086]
[1680632978176,0.08695695,28120.0,28119.0,0.002]
[1680632979046,0.08695695,28120.0,28118.0,0.25114648]
[1680632979265,0.0483,28119.0,28118.0,0.25114648]
[1680632979487,0.004,28120.0,28118.0,0.25114648]
[1680632979707,0.004,28120.0,28118.0,0.25108648]
[1680632980141,0.41238956,28121.0,28118.0,0.25108648]
[1680632980357,0.41238956,28121.0,28118.0,0.25308648]
[1680632980573,0.53411873,28121.0,28118.0,0.25308648]
[1680632980796,0.41238956,28121.0,28119.0,0.37797027]
[1680632981010,0.41238956,28121.0,28118.0,0.00018]
[1680632981011,0.41279173,28121.0,28118.0,0.00018]
[1680632981223,0.38521586,28120.0,28117.0,0.50565337]
[1680632981442,0.38521586,28120.0,28118.0,0.037844]
[1680632981936,0.38521586,28120.0,28118.0,0.002]
[1680632982165,0.38521586,28120.0,28117.0,0.42056477]
[1680632982380,0.38921586,28120.0,28117.0,0.42056477]
[1680632983030,0.38921586,28120.0,28118.0,0.038383]
[1680632983250,0.38521586,28120.0,28117.0,0.42056477]
[1680632983467,0.38521586,28120.0,28117.0,0.42256477]
[1680632983686,0.38521586,28120.0,28117.0,0.42056477]
[1680632983901,0.38921586,28120.0,28117.0,0.42056477]
[1680632984325,0.38921586,28120.0,28118.0,0.32678052]
[1680632984540,0.38921586,28120.0,28118.0,0.32696052]
[1680632984756,0.004,28120.0,28118.0,0.32696052]
[1680632984972,0.004,28120.0,28119.0,0.04096]
[1680632985627,0.0484,28121.0,28119.0,0.04096]
[1680632986287,0.004,28120.0,28118.0,0.32678052]
[1680632986506,0.004,28120.0,28119.0,0.040487]
[1680632986747,0.0484,28121.0,28118.0,0.32678052]
[1680632986966,0.0594,28121.0,28119.0,0.001]
[1680632987189,0.0484,28121.0,28118.0,0.32678052]
[1680632987410,0.0484,28121.0,28118.0,0.32878052]
[1680632987618,0.0484,28121.0,28118.0,0.32678052]
[1680632988960,0.43665432,28121.0,28118.0,0.32678052]
[1680632989178,0.43665432,28121.0,28118.0,0.32690052]
[1680632989398,0.43265432,28121.0,28118.0,0.32690052]
[1680632989613,0.43265432,28121.0,28118.0,0.32890052]
[1680632990267,0.30040217,28122.0,28119.0,0.040669]
[1680632990483,0.30040217,28122.0,28118.0,0.32878052]
[1680632990741,0.65937514,28122.0,28118.0,0.32878052]
[1680632991178,0.28612264,28121.0,28118.0,0.32878052]
[1680632991397,0.28612264,28121.0,28119.0,0.37850034]
[1680632991613,0.28652481,28121.0,28119.0,0.37850034]
[1680632991829,0.28652481,28121.0,28120.0,0.040396]
[1680632992288,0.31552481,28121.0,28120.0,0.040396]
[1680632992515,0.02940217,28121.0,28120.0,0.040396]
[1680632992727,0.033,28121.0,28120.0,0.040396]
[1680632993163,0.029,28121.0,28120.0,0.040396]
[1680632993399,0.04,28121.0,28120.0,0.041396]
[1680632993620,0.04,28121.0,28120.0,0.001]
[1680632994065,0.04,28121.0,28120.0,0.039167]
[1680632994292,0.04,28121.0,28120.0,0.38827051]
[1680632994509,0.04,28121.0,28120.0,0.38960851]
[1680632995224,0.011,28121.0,28120.0,0.38960851]
[1680632995448,0.011,28121.0,28120.0,0.42699556]
[1680632995671,0.011,28121.0,28120.0,0.78397444]
[1680632996565,0.011,28121.0,28120.0,0.42681556]
[1680632996792,0.01089877,28121.0,28120.0,0.84198691]
[1680632997247,0.01089877,28121.0,28120.0,0.76608691]
[1680632997529,0.01089877,28121.0,28120.0,0.42681556]
[1680632997755,0.00040217,28125.0,28120.0,0.85787862]
[1680632997977,0.002,28121.0,28120.0,0.48066306]
[1680632998192,0.002,28121.0,28120.0,0.51991706]
[1680632998424,0.002,28121.0,28120.0,0.50109858]
[1680632998660,0.00040217,28125.0,28120.0,0.48409858]
[1680632998886,0.002,28125.0,28121.0,0.048249]
[1680632999124,0.34706512,28126.0,28122.0,0.5055102]
[1680632999313,0.34706512,28126.0,28122.0,0.4657972]
[1680632999457,0.34706512,28126.0,28123.0,0.0265]
[1680633000800,0.002,28125.0,28123.0,0.0265]
[1680633000988,0.00040217,28125.0,28123.0,0.0265]
[1680633001238,0.00040217,28125.0,28123.0,0.0415]
[1680633001674,0.00040217,28125.0,28124.0,0.23263178]
[1680633001928,0.00040217,28125.0,28124.0,0.27338178]
[1680633002163,0.00140217,28125.0,28124.0,0.23263178]
[1680633002421,0.001,28125.0,28124.0,0.27063478]
[1680633002639,0.00140217,28125.0,28124.0,0.26293178]
[1680633003286,0.00040217,28125.0,28124.0,0.65765234]
[1680633003507,0.00040217,28125.0,28124.0,0.66665234]
[1680633003508,0.00140217,28125.0,28124.0,0.66665234]
[1680633003734,0.001,28125.0,28124.0,0.66665234]
[1680633006972,0.001,28125.0,28124.0,0.67515234]
[1680633009300,0.001,28125.0,28124.0,0.67760916]
[1680633010221,0.001,28125.0,28124.0,1.17904205]
[1680633010446,0.001,28125.0,28124.0,1.26453345]
[1680633011345,0.001,28125.0,28124.0,1.34883345]
[1680633011589,0.001,28125.0,28124.0,1.43386373]
[1680633011814,0.001,28125.0,28124.0,1.34883345]
[1680633012480,0.00040217,28130.0,28124.0,1.33983345]
[1680633012764,0.00040217,28130.0,28126.0,0.3738]
[1680633012990,0.00040217,28130.0,28127.0,0.39581756]
[1680633013215,0.00040217,28130.0,28128.0,0.047614]
[1680633013441,0.00040217,28130.0,28129.0,0.39553656]
[1680633013666,0.00140217,28130.0,28129.0,0.40403656]
[1680633013888,0.001,28130.0,28129.0,0.40386749]
[1680633014130,0.001,28130.0,28129.0,0.45056749]
[1680633014355,0.39207234,28132.0,28129.0,0.45056749]
[1680633014581,0.39207234,28132.0,28130.0,0.041749]
[1680633014811,0.39207234,28132.0,28131.0,0.35471056]
[1680633015047,0.00040217,28132.0,28131.0,0.35471056]
[1680633015274,0.86135257,28134.0,28131.0,0.39184356]
[1680633015495,0.86135257,28134.0,28131.0,0.35471056]
[1680633015947,0.001,28132.0,28131.0,0.36271056]
[1680633016173,0.86135257,28134.0,28131.0,0.40544356]
[1680633016391,0.86235257,28134.0,28131.0,0.36271056]
[1680633016620,0.86235257,28134.0,28132.0,0.040179]
[1680633016849,0.86235257,28134.0,28132.0,0.35471056]
[1680633018186,0.86135257,28134.0,28133.0,0.039555]
[1680633018403,0.86135257,28134.0,28132.0,0.35571056]
[1680633018643,0.86135257,28134.0,28133.0,0.35471056]
[1680633019304,0.86235257,28134.0,28133.0,0.35471056]
[1680633019761,0.86135257,28134.0,28133.0,0.35471056]
[1680633019976,0.52750217,28134.0,28133.0,0.39415156]
[1680633020201,0.52250217,28134.0,28133.0,0.39393356]
[1680633020719,0.52250217,28134.0,28133.0,0.35471056]
[1680633021147,0.52350217,28134.0,28133.0,0.68589241]
[1680633021369,0.00040217,28134.0,28133.0,0.67789241]
[1680633021600,0.001,28134.0,28133.0,0.69189241]
[1680633021835,0.00040217,28136.0,28133.0,0.67789241]
[1680633022084,0.00040217,28136.0,28134.0,0.040347]
[1680633022308,0.39313743,28138.0,28135.0,0.36321056]
[1680633022540,0.39511791,28137.0,28135.0,0.35471056]
[1680633022769,0.00040217,28137.0,28136.0,0.041149]
[1680633023017,0.38325717,28139.0,28136.0,0.39585956]
[1680633023259,0.38325717,28139.0,28136.0,0.35471056]
[1680633023711,0.382855,28139.0,28136.0,0.35471056]
[1680633024162,0.382855,28139.0,28137.0,0.038939]
[1680633024393,0.38325717,28139.0,28136.0,0.35471056]
[1680633024625,0.382855,28139.0,28136.0,0.35471056]
[1680633024859,0.382855,28139.0,28136.0,0.38071056]
[1680633025085,0.382855,28139.0,28136.0,0.35471056]
[1680633025307,0.382855,28139.0,28137.0,0.02]
[1680633025578,0.38325717,28139.0,28136.0,0.35471056]
[1680633025795,0.382855,28139.0,28136.0,0.35471056]
[1680633026253,0.382855,28139.0,28136.0,0.38071056]
[1680633030096,0.382855,28139.0,28136.0,0.6789407]
[1680633030859,0.382855,28139.0,28136.0,0.6529407]
[1680633031070,0.382855,28139.0,28136.0,0.6789407]
[1680633031549,0.382855,28139.0,28137.0,0.68337725]
[1680633031760,0.00040217,28139.0,28137.0,0.68337725]
[1680633031974,0.90491831,28141.0,28138.0,0.17052]
[1680633032188,0.85291831,28141.0,28139.0,0.35471056]
[1680633032395,0.85291831,28141.0,28140.0,0.038619]
[1680633033512,0.53820217,28141.0,28140.0,0.39332956]
[1680633033707,0.00040217,28141.0,28140.0,0.74726763]
[1680633033909,0.00036,28141.0,28140.0,0.74726763]
[1680633034110,0.4084092,28142.0,28141.0,0.041681]
[1680633034814,0.02326979,28142.0,28141.0,0.39651156]
[1680633035030,0.02290979,28142.0,28141.0,0.39639156]
[1680633035247,0.02290979,28142.0,28141.0,0.35471056]
[1680633035679,0.02290979,28142.0,28141.0,0.026]
[1680633035892,0.36782146,28142.0,28141.0,0.026]
[1680633036102,0.48134969,28142.0,28141.0,0.026]
[1680633036313,0.38734646,28142.0,28141.0,0.026]
[1680633036525,0.36782146,28142.0,28141.0,0.026]
[1680633036740,0.38762746,28142.0,28141.0,0.026]
[1680633036958,0.38762746,28142.0,28139.0,0.00018]
[1680633037178,0.052,28141.0,28138.0,0.1707]
[1680633037390,0.052,28141.0,28138.0,0.53789662]
[1680633040444,0.34460437,28140.0,28139.0,0.01318]
[1680633045877,0.34460437,28140.0,28139.0,0.050693]
[1680633046323,0.34460437,28140.0,28139.0,0.1837]
[1680633046755,0.34460437,28140.0,28139.0,0.222327]
[1680633048966,0.052,28141.0,28139.0,0.222327]
[1680633049184,0.052,28141.0,28140.0,0.041455]
[1680633049185,0.39248281,28141.0,28140.0,0.041455]
[1680633049406,0.39248281,28141.0,28140.0,0.041635]
[1680633050524,0.39248281,28141.0,28140.0,0.047635]
[1680633051220,0.37158281,28141.0,28140.0,0.047635]
[1680633051659,0.37158281,28141.0,28140.0,0.40234556]
[1680633052559,0.0311,28141.0,28140.0,0.40234556]
[1680633052779,0.0311,28141.0,28140.0,0.40228556]
[1680633053189,0.0311,28141.0,28140.0,0.40234556]
[1680633054310,0.32140403,28141.0,28140.0,0.00618]
[1680633054521,0.32140403,28141.0,28140.0,0.006]
[1680633056269,0.32176403,28141.0,28137.0,0.21986214]
[1680633056513,0.3218062,28141.0,28138.0,0.56500656]
[1680633056743,0.3218062,28141.0,28139.0,0.040793]
[1680633056966,0.3218062,28141.0,28139.0,0.211313]
[1680633057181,0.4169885,28140.0,28139.0,0.17052]
[1680633057407,0.41739067,28140.0,28139.0,0.211315]
[1680633059229,0.41839067,28140.0,28139.0,0.223315]
[1680633060369,0.41839067,28140.0,28139.0,0.222106]
[1680633061052,0.00140217,28140.0,28139.0,0.222106]
[1680633061277,0.00140217,28140.0,28139.0,0.051335]
[1680633061501,0.38647477,28140.0,28139.0,0.012]
[1680633061941,0.38687694,28140.0,28139.0,0.012]
[1680633062398,0.41797694,28140.0,28139.0,0.012]
[1680633063555,0.03250217,28140.0,28139.0,0.054764]
[1680633063785,0.0321,28140.0,28139.0,0.48362564]
[1680633064233,0.0321,28140.0,28139.0,0.8383362]
[1680633065662,0.40940972,28140.0,28139.0,0.054764]
[1680633065894,0.40940972,28140.0,28139.0,0.012]
[1680633067489,0.07573412,28140.0,28139.0,0.012]
[1680633067725,0.14588079,28140.0,28139.0,0.012]
[1680633067949,0.16491496,28140.0,28139.0,0.012]
[1680633068172,0.52434821,28140.0,28139.0,0.012]
[1680633068398,0.46491496,28140.0,28139.0,0.012]
[1680633068629,0.61491496,28140.0,28139.0,0.012]
[1680633069087,0.61491496,28140.0,28134.0,0.08503779]
[1680633069088,1.08887744,28140.0,28134.0,0.08503779]
[1680633069322,0.0311,28135.0,28134.0,0.00012]
[1680633069573,0.0311,28135.0,28132.0,0.00018]
[1680633069574,0.15,28134.0,28132.0,0.00018]
[1680633069796,0.050453,28133.0,28130.0,0.08521779]
[1680633070019,0.031,28131.0,28130.0,0.00018]
[1680633070691,0.031,28131.0,28130.0,0.08521779]
[1680633071161,0.032,28131.0,28130.0,0.08521779]
[1680633071381,0.032,28131.0,28130.0,0.00018]
[1680633071603,0.050708,28131.0,28128.0,0.00018]
[1680633071822,0.018973,28130.0,28128.0,0.00018]
[1680633072100,0.35254139,28129.0,28128.0,0.00018]
[1680633072316,0.35634139,28129.0,28128.0,0.00018]
[1680633072537,0.37646939,28129.0,28128.0,0.00018]
[1680633072759,0.37626639,28129.0,28128.0,0.00018]
[1680633072977,0.35634139,28129.0,28128.0,0.00018]
[1680633073195,0.67539139,28129.0,28128.0,0.013]
[1680633073868,0.67539139,28129.0,28126.0,0.00018]
[1680633074092,0.0038,28127.0,28126.0,0.00018]
[1680633074327,0.13816533,28127.0,28126.0,0.00018]
[1680633074587,0.13824033,28127.0,28126.0,0.00018]
[1680633074800,0.44626205,28127.0,28126.0,0.00018]
[1680633075458,0.45326205,28127.0,28126.0,0.00118]
[1680633075688,0.55722754,28127.0,28126.0,0.00118]
[1680633075918,1.09982754,28127.0,28126.0,0.001]
[1680633076139,1.47362754,28127.0,28126.0,0.001]
[1680633077247,1.46662754,28127.0,28122.0,0.0209]
[1680633077465,1.34340621,28127.0,28126.0,0.002]
[1680633077682,1.36656221,28127.0,28126.0,0.002]
[1680633078133,0.3738,28125.0,28122.0,0.0209]
[1680633078355,0.0038,28123.0,28122.0,0.0209]
[1680633078702,0.20833291,28123.0,28122.0,0.0209]
[1680633078805,0.35833291,28123.0,28122.0,0.0209]
[1680633079929,0.35833291,28123.0,28122.0,0.0219]
[1680633079930,1.0739373,28123.0,28122.0,0.0219]
[1680633080145,1.0679373,28123.0,28122.0,0.0209]
[1680633080363,1.0809373,28123.0,28122.0,0.0219]
[1680633081246,1.38982038,28123.0,28122.0,0.0219]
[1680633081467,1.23982038,28123.0,28122.0,0.0219]
[1680633081683,1.1658071,28123.0,28122.0,0.0209]
[1680633082125,0.8482174,28123.0,28122.0,0.0209]
[1680633083035,0.8662174,28123.0,28122.0,0.0219]
[1680633083247,0.95283914,28123.0,28122.0,0.0219]
[1680633083894,0.8662174,28123.0,28122.0,0.0219]
[1680633084324,1.19312711,28123.0,28122.0,0.0219]
[1680633084537,0.8662174,28123.0,28122.0,0.0219]
[1680633084758,1.19526896,28123.0,28122.0,0.0219]
[1680633085477,1.23882309,28123.0,28122.0,0.0219]
[1680633085713,0.86502309,28123.0,28122.0,0.0219]
[1680633086243,0.9889054,28123.0,28122.0,0.0219]
[1680633086528,0.86502309,28123.0,28122.0,0.0219]
[1680633087018,0.8662174,28123.0,28122.0,0.0219]
[1680633088853,0.8482174,28123.0,28122.0,0.0209]
[1680633089081,0.8752174,28123.0,28122.0,0.0209]
[1680633089312,0.93573914,28123.0,28122.0,0.0209]
[1680633089534,0.96273914,28123.0,28122.0,0.0209]
[1680633090470,0.98045543,28123.0,28122.0,0.0209]
[1680633090920,0.96273914,28123.0,28122.0,0.0209]
[1680633091376,0.95893914,28123.0,28122.0,0.0209]
[1680633091633,1.57622914,28123.0,28122.0,0.0209]
[1680633091854,0.3738,28121.0,28116.0,0.00012]
[1680633092076,0.3738,28118.0,28115.0,0.0209]
[1680633092310,0.3738,28116.0,28115.0,0.0209]
[1680633092530,0.51011633,28116.0,28115.0,0.0209]
[1680633093012,0.49061433,28116.0,28115.0,0.0209]
[1680633093230,0.91123757,28116.0,28115.0,0.0209]
[1680633093468,0.93111657,28116.0,28115.0,0.0209]
[1680633093903,0.95115147,28116.0,28115.0,0.0209]
[1680633094138,0.97054247,28116.0,28115.0,0.0209]
[1680633094357,0.97027547,28116.0,28115.0,0.0209]
[1680633094895,0.69590302,28116.0,28115.0,0.0209]
[1680633095109,0.70077902,28116.0,28115.0,0.0170555]
[1680633095324,0.62115247,28116.0,28115.0,0.0170555]
[1680633095728,0.97515147,28116.0,28115.0,0.0170555]
[1680633095942,0.62187347,28116.0,28115.0,0.0170555]
[1680633096160,0.60135147,28116.0,28115.0,0.0170555]
[1680633097360,0.48453714,28116.0,28115.0,0.0170555]
[1680633097559,0.0639139,28116.0,28115.0,0.0170555]
[1680633098532,0.41020379,28116.0,28115.0,0.0170555]
[1680633099400,0.41060596,28116.0,28115.0,0.0170555]
[1680633099824,0.0639139,28116.0,28115.0,0.0576495]
[1680633100039,0.0639139,28116.0,28115.0,0.0170555]
[1680633102474,0.48984257,28116.0,28115.0,0.0170555]
[1680633102685,0.47000957,28116.0,28115.0,0.0170555]
[1680633103529,0.0639139,28116.0,28115.0,0.0170555]